fUST/lending_fUST_20260523
["ID","MTS","AMOUNT","RATE_DAILY","PERIOD"]
[422865741,1779547840000,-501.50501907,8.219e-05,2]
[422865747,1779547840000,-500.0,8.219e-05,2]
[422865739,1779547840000,-501.53106461,8.219e-05,2]
[422865756,1779547840000,-921.36,8.219e-05,2]
[422865749,1779547840000,-151.5,8.219e-05,2]
[422865750,1779547840000,-215.04220334,8.219e-05,2]
[422865755,1779547840000,-500.0,8.219e-05,2]
[422865757,1779547840000,-500.0,8.219e-05,2]
[422865754,1779547840000,-500.0,8.219e-05,2]
[422865759,1779547840000,-500.0,8.219e-05,2]
[422865760,1779547840000,-500.0,8.219e-05,2]
[422865758,1779547840000,-504.09390475,8.219e-05,2]
[422865752,1779547840000,-500.0,8.219e-05,2]
[422865737,1779547840000,-501.51230276,8.219e-05,2]
[422865751,1779547840000,-500.97322801,8.219e-05,2]
[422865745,1779547840000,-151.5,8.219e-05,2]
[422865732,1779547840000,-501.36923806,8.219e-05,2]
[422865717,1779547840000,-500.35506271,8.219e-05,2]
[422865731,1779547840000,-593.82307945,8.219e-05,2]
[422865753,1779547840000,-501.99193987,8.219e-05,2]
[422865711,1779547840000,-501.37860688,8.219e-05,2]
[422865713,1779547840000,-500.0,8.219e-05,2]
[422865712,1779547840000,-501.75380304,8.219e-05,2]
[422865715,1779547840000,-481.80642524,8.219e-05,2]
[422865714,1779547840000,-500.60263962,8.219e-05,2]
[422865707,1779547840000,-500.0,8.219e-05,2]
[422865709,1779547840000,-500.68578666,8.219e-05,2]
[422865705,1779547840000,-501.68595189,8.219e-05,2]
[422865716,1779547840000,-500.87784273,8.219e-05,2]
[422865719,1779547840000,-406.20773638,8.219e-05,2]
[422865718,1779547840000,-634.61471384,8.219e-05,2]
[422865720,1779547840000,-501.94660765,8.219e-05,2]
[422865723,1779547840000,-186.47882676,8.219e-05,2]
[422865722,1779547840000,-500.0,8.219e-05,2]
[422865721,1779547840000,-500.43993428,8.219e-05,2]
[422865724,1779547840000,-502.30215868,8.219e-05,2]
[422865735,1779547840000,-503.2857313,8.219e-05,2]
[422865726,1779547840000,-501.34849625,8.219e-05,2]
[422865727,1779547840000,-500.9090379,8.219e-05,2]
[422865729,1779547840000,-501.39917324,8.219e-05,2]
[422865725,1779547840000,-553.39,8.219e-05,2]
[422865728,1779547840000,-501.40945834,8.219e-05,2]
[422865733,1779547840000,-502.0304904,8.219e-05,2]
[422865730,1779547840000,-501.74550227,8.219e-05,2]
[422865734,1779547840000,-505.41173805,8.219e-05,2]
[422865762,1779547840000,-500.0,8.219e-05,2]
[422865777,1779547840000,-626.83,8.219e-05,2]
[422865765,1779547840000,-500.0,8.219e-05,2]
[422865822,1779547840000,-595.07434253,8.219e-05,2]
[422865820,1779547840000,-169.42905729,8.219e-05,2]
[422865816,1779547840000,-500.0,8.219e-05,2]
[422865812,1779547840000,-500.0,8.219e-05,2]
[422865826,1779547840000,-501.37599528,8.219e-05,2]
[422865828,1779547840000,-500.0,8.219e-05,2]
[422865830,1779547840000,-500.0,8.219e-05,2]
[422865832,1779547840000,-864.01,8.219e-05,2]
[422865833,1779547840000,-500.0,8.219e-05,2]
[422865834,1779547840000,-500.0,8.219e-05,2]
[422865837,1779547840000,-500.0,8.219e-05,2]
[422865814,1779547840000,-500.0,8.219e-05,2]
[422865835,1779547840000,-500.83054437,8.219e-05,2]
[422865838,1779547840000,-501.29600115,8.219e-05,2]
[422865840,1779547840000,-500.0,8.219e-05,2]
[422865839,1779547840000,-500.0,8.219e-05,2]
[422865841,1779547840000,-274.20480229,8.219e-05,7]
[422865845,1779547840000,-303.15754475,8.219e-05,2]
[422865843,1779547840000,-322.66999712,8.219e-05,7]
[422865842,1779547840000,-161.33499856,8.219e-05,7]
[422865761,1779547840000,-500.0,8.219e-05,2]
[422865847,1779547840000,-606.31508951,8.219e-05,2]
[422865846,1779547840000,-454.73631713,8.219e-05,2]
[422865848,1779547840000,-209.55158059,8.219e-05,2]
[422865836,1779547840000,-500.0,8.219e-05,2]
[422865824,1779547840000,-500.44300907,8.219e-05,2]
[422865844,1779547840000,-151.57877238,8.219e-05,2]
[422865818,1779547840000,-500.92607285,8.219e-05,2]
[422865808,1779547840000,-500.0,8.219e-05,2]
[422865767,1779547840000,-500.0,8.219e-05,2]
[422865779,1779547840000,-500.0,8.219e-05,2]
[422865771,1779547840000,-500.0,8.219e-05,2]
[422865775,1779547840000,-874.63,8.219e-05,2]
[422865781,1779547840000,-500.0,8.219e-05,2]
[422865769,1779547840000,-500.0,8.219e-05,2]
[422865783,1779547840000,-530.12,8.219e-05,2]
[422865785,1779547840000,-550.73,8.219e-05,2]
[422865787,1779547840000,-500.0,8.219e-05,2]
[422865797,1779547840000,-500.0,8.219e-05,2]
[422865799,1779547840000,-500.87821354,8.219e-05,2]
[422865773,1779547840000,-500.0,8.219e-05,2]
[422865801,1779547840000,-500.0,8.219e-05,2]
[422865800,1779547840000,-500.0,8.219e-05,2]
[422865807,1779547840000,-973.71,8.219e-05,2]
[422865789,1779547840000,-500.0,8.219e-05,2]
[422865793,1779547840000,-500.0,8.219e-05,2]
[422865795,1779547840000,-500.0,8.219e-05,2]
[422865810,1779547840000,-481.48564224,8.219e-05,2]
[422865806,1779547840000,-500.40926505,8.219e-05,2]
[422865805,1779547840000,-500.0,8.219e-05,2]
[422865803,1779547840000,-500.0,8.219e-05,2]
[422865804,1779547840000,-4821.42,8.219e-05,2]
[422865791,1779547840000,-501.08406998,8.219e-05,2]
[422865809,1779547840000,-500.7034496,8.219e-05,2]
[422865874,1779547841000,-756.01130702,8.219e-05,7]
[422865882,1779547841000,-385.172439,8.219e-05,7]
[422865875,1779547841000,-220.16283944,8.219e-05,7]
[422865900,1779547841000,-151.0,8.219e-05,2]
[422865876,1779547841000,-440.32567888,8.219e-05,7]
[422865877,1779547841000,-158.13350357,8.219e-05,7]
[422865880,1779547841000,-632.53401427,8.219e-05,7]
[422865878,1779547841000,-316.26700713,8.219e-05,7]
[422865879,1779547841000,-474.4005107,8.219e-05,7]
[422865881,1779547841000,-192.5862195,8.219e-05,7]
[422865888,1779547841000,-495.64405072,8.219e-05,7]
[422865883,1779547841000,-577.7586585,8.219e-05,7]
[422865891,1779547841000,-684.00583063,8.219e-05,7]
[422865884,1779547841000,-770.344878,8.219e-05,7]
[422865887,1779547841000,-247.82202536,8.219e-05,7]
[422865885,1779547841000,-173.23183362,8.219e-05,7]
[422865889,1779547841000,-228.00194354,8.219e-05,7]
[422865886,1779547841000,-346.46366725,8.219e-05,7]
[422865893,1779547841000,-150.60326149,8.219e-05,7]
[422865873,1779547841000,-614.71237259,8.219e-05,7]
[422865890,1779547841000,-456.00388709,8.219e-05,7]
[422865872,1779547841000,-461.03427944,8.219e-05,7]
[422865863,1779547841000,-161.33502604,8.219e-05,7]
[422865865,1779547841000,-484.00507812,8.219e-05,7]
[422865851,1779547841000,-484.00499569,8.219e-05,7]
[422865850,1779547841000,-204.93696256,8.219e-05,2]
[422865852,1779547841000,-193.24872416,8.219e-05,7]
[422865853,1779547841000,-386.49744833,8.219e-05,7]
[422865849,1779547841000,-419.10316118,8.219e-05,2]
[422865854,1779547841000,-579.74617249,8.219e-05,7]
[422865856,1779547841000,-357.76918954,8.219e-05,7]
[422865859,1779547841000,-378.00565351,8.219e-05,7]
[422865860,1779547841000,-567.00848026,8.219e-05,7]
[422865871,1779547841000,-307.3561863,8.219e-05,7]
[422865861,1779547841000,-156.56327787,8.219e-05,7]
[422865855,1779547841000,-178.88459477,8.219e-05,7]
[422865857,1779547841000,-536.65378432,8.219e-05,7]
[422865862,1779547841000,-313.12655573,8.219e-05,7]
[422865864,1779547841000,-322.67005208,8.219e-05,7]
[422865866,1779547841000,-645.34010415,8.219e-05,7]
[422865867,1779547841000,-588.01696491,8.219e-05,7]
[422865868,1779547841000,-409.87392513,8.219e-05,2]
[422865869,1779547841000,-215.52029938,8.219e-05,7]
[422865870,1779547841000,-153.67809315,8.219e-05,7]
[422865858,1779547841000,-189.00282675,8.219e-05,7]
[422865899,1779547841000,-151.0,8.219e-05,2]
[422865916,1779547841000,-291.73026444,8.493e-05,2]
[422865895,1779547841000,-500.0,8.219e-05,2]
[422865924,1779547841000,-500.0,8.493e-05,2]
[422865923,1779547841000,-500.0,8.493e-05,2]
[422865921,1779547841000,-597.99,8.493e-05,2]
[422865925,1779547841000,-500.0,8.493e-05,2]
[422865927,1779547841000,-358.10931722,8.493e-05,2]
[422865928,1779547841000,-500.0,8.493e-05,2]
[422865930,1779547841000,-500.0,8.493e-05,2]
[422865931,1779547841000,-500.0,8.493e-05,2]
[422865939,1779547841000,-500.0,8.493e-05,2]
[422865940,1779547841000,-500.0,8.493e-05,2]
[422865929,1779547841000,-501.05,8.493e-05,2]
[422865937,1779547841000,-501.57994855,8.493e-05,2]
[422865933,1779547841000,-500.0,8.493e-05,2]
[422865935,1779547841000,-546.23989953,8.493e-05,2]
[422865932,1779547841000,-151.0,8.493e-05,2]
[422865936,1779547841000,-400.0,8.493e-05,2]
[422865934,1779547841000,-501.74773393,8.493e-05,2]
[422865938,1779547841000,-500.0,8.493e-05,2]
[422865942,1779547841000,-921.36,8.493e-05,2]
[422865941,1779547841000,-500.0,8.493e-05,2]
[422865894,1779547841000,-301.20652299,8.219e-05,7]
[422865922,1779547841000,-500.0,8.493e-05,2]
[422865926,1779547841000,-500.0,8.493e-05,2]
[422865918,1779547841000,-500.0,8.493e-05,2]
[422865915,1779547841000,-500.0,8.493e-05,2]
[422865896,1779547841000,-171.79111016,8.219e-05,7]
[422865897,1779547841000,-220.1176455,8.219e-05,2]
[422865898,1779547841000,-151.0,8.219e-05,2]
[422865901,1779547841000,-864.0,8.295e-05,2]
[422865902,1779547841000,-500.0,8.3e-05,2]
[422865909,1779547841000,-500.0,8.493e-05,2]
[422865903,1779547841000,-4367.748717,8.394e-05,2]
[422865906,1779547841000,-500.0,8.493e-05,2]
[422865907,1779547841000,-500.0,8.493e-05,2]
[422865904,1779547841000,-1235.7561,8.493e-05,2]
[422865892,1779547841000,-431.04059877,8.219e-05,7]
[422865905,1779547841000,-500.0,8.493e-05,2]
[422865908,1779547841000,-523.23,8.493e-05,2]
[422865912,1779547841000,-500.0,8.493e-05,2]
[422865911,1779547841000,-500.0,8.493e-05,2]
[422865913,1779547841000,-500.0,8.493e-05,2]
[422865914,1779547841000,-500.0,8.493e-05,2]
[422865917,1779547841000,-500.0,8.493e-05,2]
[422865919,1779547841000,-500.0,8.493e-05,2]
[422865920,1779547841000,-500.0,8.493e-05,2]
[422865910,1779547841000,-500.0,8.493e-05,2]
[422865977,1779547842000,-500.0,8.493e-05,2]
[422865976,1779547842000,-500.0,8.219e-05,2]
[422865971,1779547842000,-500.0,8.493e-05,2]
[422865966,1779547842000,-571.26,8.493e-05,2]
[422865968,1779547842000,-500.0,8.493e-05,2]
[422865974,1779547842000,-806.67513019,8.496e-05,7]
[422865973,1779547842000,-768.39046574,8.496e-05,7]
[422865979,1779547842000,-650.0,8.588e-05,2]
[422865970,1779547842000,-500.0,8.493e-05,2]
[422865983,1779547842000,-650.0,8.588e-05,2]
[422865985,1779547842000,-650.0,8.588e-05,2]
[422865980,1779547842000,-650.0,8.588e-05,2]
[422865982,1779547842000,-650.0,8.588e-05,2]
[422865984,1779547842000,-650.0,8.588e-05,2]
[422865989,1779547842000,-650.0,8.588e-05,2]
[422865990,1779547842000,-614.01316397,8.588e-05,2]
[422865986,1779547842000,-650.0,8.588e-05,2]
[422865978,1779547842000,-3312.36528877,8.521e-05,2]
[422865987,1779547842000,-650.0,8.588e-05,2]
[422865972,1779547842000,-790.66751784,8.496e-05,7]
[422865988,1779547842000,-650.0,8.588e-05,2]
[422865981,1779547842000,-650.0,8.588e-05,2]
[422865969,1779547842000,-500.0,8.493e-05,2]
[422865960,1779547842000,-500.0,8.493e-05,2]
[422865967,1779547842000,-500.0,8.493e-05,2]
[422865952,1779547842000,-550.73,8.493e-05,2]
[422865945,1779547842000,-505.3,8.493e-05,2]
[422865944,1779547842000,-500.0,8.493e-05,2]
[422865943,1779547842000,-500.0,8.493e-05,2]
[422865947,1779547842000,-500.0,8.493e-05,2]
[422865949,1779547842000,-874.63,8.493e-05,2]
[422865948,1779547842000,-500.0,8.493e-05,2]
[422865946,1779547842000,-500.0,8.493e-05,2]
[422865951,1779547842000,-500.0,8.493e-05,2]
[422865950,1779547842000,-626.83,8.493e-05,2]
[422865953,1779547842000,-500.0,8.493e-05,2]
[422865956,1779547842000,-500.0,8.493e-05,2]
[422865955,1779547842000,-575.1,8.493e-05,2]
[422865957,1779547842000,-4821.42,8.493e-05,2]
[422865992,1779547842000,-151.0,8.727e-05,2]
[422865963,1779547842000,-500.0,8.493e-05,2]
[422865961,1779547842000,-500.0,8.493e-05,2]
[422865954,1779547842000,-500.0,8.493e-05,2]
[422865959,1779547842000,-973.71,8.493e-05,2]
[422865958,1779547842000,-500.0,8.493e-05,2]
[422865964,1779547842000,-864.01,8.493e-05,2]
[422865962,1779547842000,-500.0,8.493e-05,2]
[422865965,1779547842000,-208.620996,8.493e-05,2]
[422865975,1779547842000,-1856.81073176,8.521e-05,2]
[422866001,1779547842000,-650.0,8.745e-05,2]
[422865991,1779547842000,-549.91206388,8.62e-05,2]
[422866003,1779547842000,-650.0,8.745e-05,2]
[422866029,1779547842000,-650.0,8.745e-05,2]
[422866024,1779547842000,-650.0,8.745e-05,2]
[422866023,1779547842000,-650.0,8.745e-05,2]
[422866022,1779547842000,-650.0,8.745e-05,2]
[422866002,1779547842000,-650.0,8.745e-05,2]
[422866025,1779547842000,-650.0,8.745e-05,2]
[422866028,1779547842000,-650.0,8.745e-05,2]
[422866026,1779547842000,-650.0,8.745e-05,2]
[422866033,1779547842000,-650.0,8.745e-05,2]
[422866042,1779547842000,-2204.0,8.747e-05,2]
[422866020,1779547842000,-650.0,8.745e-05,2]
[422866032,1779547842000,-650.0,8.745e-05,2]
[422866046,1779547842000,-379.33425361,8.767e-05,2]
[422866039,1779547842000,-650.0,8.745e-05,2]
[422866044,1779547842000,-648.0,8.747e-05,2]
[422866037,1779547842000,-650.0,8.745e-05,2]
[422866048,1779547842000,-856.42184639,8.767e-05,2]
[422866050,1779547842000,-179.3974,8.767e-05,2]
[422866052,1779547842000,-334.3,8.767e-05,2]
[422866054,1779547842000,-500.0,8.767e-05,2]
[422866058,1779547842000,-500.0,8.767e-05,2]
[422866055,1779547842000,-500.0,8.767e-05,2]
[422866035,1779547842000,-650.0,8.745e-05,2]
[422866030,1779547842000,-650.0,8.745e-05,2]
[422866027,1779547842000,-650.0,8.745e-05,2]
[422866021,1779547842000,-650.0,8.745e-05,2]
[422866000,1779547842000,-650.0,8.745e-05,2]
[422865998,1779547842000,-151.0,8.727e-05,2]
[422865995,1779547842000,-500.0,8.727e-05,2]
[422865997,1779547842000,-537.6845,8.727e-05,2]
[422866031,1779547842000,-650.0,8.745e-05,2]
[422865999,1779547842000,-166.0,8.745e-05,2]
[422865993,1779547842000,-162.380719,8.727e-05,2]
[422866005,1779547842000,-180.0,8.745e-05,2]
[422866007,1779547842000,-164.0,8.745e-05,2]
[422866008,1779547842000,-164.0,8.745e-05,2]
[422866014,1779547842000,-650.0,8.745e-05,2]
[422866004,1779547842000,-180.0,8.745e-05,2]
[422866009,1779547842000,-167.04656377,8.745e-05,2]
[422866010,1779547842000,-166.0,8.745e-05,2]
[422866012,1779547842000,-650.0,8.745e-05,2]
[422866016,1779547842000,-650.0,8.745e-05,2]
[422866011,1779547842000,-166.0,8.745e-05,2]
[422866019,1779547842000,-650.0,8.745e-05,2]
[422866006,1779547842000,-180.59715301,8.745e-05,2]
[422866018,1779547842000,-650.0,8.745e-05,2]
[422866015,1779547842000,-650.0,8.745e-05,2]
[422866017,1779547842000,-650.0,8.745e-05,2]
[422866013,1779547842000,-650.0,8.745e-05,2]
[422866073,1779547843000,-500.0,8.767e-05,2]
[422866084,1779547843000,-500.0,8.767e-05,2]
[422866083,1779547843000,-500.0,8.767e-05,2]
[422866075,1779547843000,-500.0,8.767e-05,2]
[422866071,1779547843000,-500.0,8.767e-05,2]
[422866082,1779547843000,-155.89,8.767e-05,2]
[422866059,1779547843000,-500.0,8.767e-05,2]
[422866079,1779547843000,-500.0,8.767e-05,2]
[422866063,1779547843000,-500.0,8.767e-05,2]
[422866069,1779547843000,-540.73,8.767e-05,2]
[422866065,1779547843000,-500.0,8.767e-05,2]
[422866061,1779547843000,-500.0,8.767e-05,2]
[422866080,1779547843000,-500.0,8.767e-05,2]
[422866085,1779547843000,-500.0,8.767e-05,2]
[422866067,1779547843000,-500.0,8.767e-05,2]
[422866086,1779547843000,-500.0,8.767e-05,2]
[422866087,1779547843000,-500.0,8.767e-05,2]
[422866100,1779547843000,-279.5142641,8.767e-05,2]
[422866099,1779547843000,-500.0,8.767e-05,2]
[422866098,1779547843000,-550.73,8.767e-05,2]
[422866096,1779547843000,-874.63,8.767e-05,2]
[422866095,1779547843000,-500.0,8.767e-05,2]
[422866088,1779547843000,-500.0,8.767e-05,2]
[422866093,1779547843000,-500.0,8.767e-05,2]
[422866092,1779547843000,-500.0,8.767e-05,2]
[422866089,1779547843000,-380.19648951,8.767e-05,2]
[422866094,1779547843000,-500.0,8.767e-05,2]
[422866090,1779547843000,-921.36,8.767e-05,2]
[422866097,1779547843000,-626.83,8.767e-05,2]
[422866091,1779547843000,-500.0,8.767e-05,2]
[422866173,1779547844000,-160.0,9.004e-05,2]
[422866175,1779547844000,-1235.7561,9.041e-05,2]
[422866177,1779547844000,-484.19136445,9.041e-05,2]
[422866179,1779547844000,-276.15,9.041e-05,2]
[422866165,1779547844000,-161.73153808,9.003e-05,2]
[422866167,1779547844000,-766.63845589,9.003e-05,2]
[422866169,1779547844000,-160.0,9.003e-05,2]
[422866186,1779547844000,-487.72,9.041e-05,2]
[422866171,1779547844000,-160.0,9.004e-05,2]
[422866184,1779547844000,-500.0,9.041e-05,2]
[422866188,1779547844000,-500.0,9.041e-05,2]
[422866195,1779547844000,-500.0,9.041e-05,2]
[422866190,1779547844000,-500.0,9.041e-05,2]
[422866197,1779547844000,-500.0,9.041e-05,2]
[422866181,1779547844000,-500.0,9.041e-05,2]
[422866160,1779547844000,-1000.0,9e-05,2]
[422866151,1779547844000,-948.8010214,8.911e-05,7]
[422866156,1779547844000,-968.01015623,8.911e-05,7]
[422866122,1779547844000,-220.4857359,8.767e-05,2]
[422866124,1779547844000,-500.0,8.767e-05,2]
[422866128,1779547844000,-500.0,8.767e-05,2]
[422866130,1779547844000,-973.71,8.767e-05,2]
[422866132,1779547844000,-500.0,8.767e-05,2]
[422866143,1779547844000,-500.0,8.767e-05,2]
[422866134,1779547844000,-500.0,8.767e-05,2]
[422866138,1779547844000,-864.01,8.767e-05,2]
[422866140,1779547844000,-500.0,8.767e-05,2]
[422866141,1779547844000,-500.0,8.767e-05,2]
[422866145,1779547844000,-500.0,8.767e-05,2]
[422866149,1779547844000,-500.0,8.767e-05,2]
[422866147,1779547844000,-500.74632693,8.767e-05,2]
[422866192,1779547844000,-151.35,9.041e-05,2]
[422866154,1779547844000,-922.06855889,8.911e-05,7]
[422866158,1779547844000,-1267.49350947,8.986e-05,2]
[422866199,1779547844000,-500.0,9.041e-05,2]
[422866126,1779547844000,-4821.42,8.767e-05,2]
[422866202,1779547844000,-282.26796106,9.041e-05,2]
[422866252,1779547844000,-500.0,9.041e-05,2]
[422866254,1779547844000,-500.0,9.041e-05,2]
[422866258,1779547844000,-1000.0,9.124e-05,2]
[422866237,1779547844000,-500.0,9.041e-05,2]
[422866239,1779547844000,-500.0,9.041e-05,2]
[422866242,1779547844000,-500.0,9.041e-05,2]
[422866241,1779547844000,-973.71,9.041e-05,2]
[422866243,1779547844000,-500.0,9.041e-05,2]
[422866245,1779547844000,-500.0,9.041e-05,2]
[422866247,1779547844000,-864.01,9.041e-05,2]
[422866260,1779547844000,-936.33411889,9.246e-05,2]
[422866262,1779547844000,-497.76379595,9.252e-05,2]
[422866265,1779547844000,-2.23620405,9.252e-05,2]
[422866266,1779547844000,-476.32256892,9.275e-05,2]
[422866204,1779547844000,-441.579,9.041e-05,2]
[422866256,1779547844000,-500.0,9.041e-05,2]
[422866251,1779547844000,-500.0,9.041e-05,2]
[422866136,1779547844000,-500.0,8.767e-05,2]
[422866238,1779547844000,-4821.42,9.041e-05,2]
[422866201,1779547844000,-500.0,9.041e-05,2]
[422866249,1779547844000,-500.0,9.041e-05,2]
[422866207,1779547844000,-500.0,9.041e-05,2]
[422866208,1779547844000,-500.0,9.041e-05,2]
[422866223,1779547844000,-500.0,9.041e-05,2]
[422866212,1779547844000,-611.92231574,9.041e-05,2]
[422866210,1779547844000,-500.0,9.041e-05,2]
[422866218,1779547844000,-500.0,9.041e-05,2]
[422866221,1779547844000,-500.0,9.041e-05,2]
[422866217,1779547844000,-500.0,9.041e-05,2]
[422866228,1779547844000,-874.63,9.041e-05,2]
[422866226,1779547844000,-500.0,9.041e-05,2]
[422866235,1779547844000,-500.0,9.041e-05,2]
[422866231,1779547844000,-626.83,9.041e-05,2]
[422866233,1779547844000,-550.73,9.041e-05,2]
[422866215,1779547844000,-921.36,9.041e-05,2]
[422866236,1779547844000,-500.0,9.041e-05,2]
[422866282,1779547847000,-500.0,9.315e-05,2]
[422866281,1779547847000,-500.0,9.315e-05,2]
[422866283,1779547847000,-500.0,9.315e-05,2]
[422866285,1779547847000,-500.0,9.315e-05,2]
[422866300,1779547847000,-973.71,9.315e-05,2]
[422866290,1779547847000,-500.0,9.315e-05,2]
[422866289,1779547847000,-500.0,9.315e-05,2]
[422866286,1779547847000,-921.36,9.315e-05,2]
[422866284,1779547847000,-500.0,9.315e-05,2]
[422866280,1779547847000,-500.0,9.315e-05,2]
[422866274,1779547847000,-3297.79525891,9.315e-05,2]
[422866276,1779547847000,-500.0,9.315e-05,2]
[422866288,1779547847000,-500.0,9.315e-05,2]
[422866278,1779547847000,-500.0,9.315e-05,2]
[422866277,1779547847000,-500.0,9.315e-05,2]
[422866287,1779547847000,-500.0,9.315e-05,2]
[422866273,1779547847000,-825.27408882,9.315e-05,2]
[422866294,1779547847000,-550.73,9.315e-05,2]
[422866275,1779547847000,-500.0,9.315e-05,2]
[422866272,1779547847000,-729.6856,9.315e-05,2]
[422866270,1779547847000,-23.67743108,9.275e-05,2]
[422866271,1779547847000,-506.0705,9.315e-05,2]
[422866279,1779547847000,-500.0,9.315e-05,2]
[422866299,1779547847000,-500.0,9.315e-05,2]
[422866292,1779547847000,-874.63,9.315e-05,2]
[422866301,1779547847000,-500.0,9.315e-05,2]
[422866293,1779547847000,-626.83,9.315e-05,2]
[422866318,1779547847000,-399.12620943,9.589e-05,2]
[422866316,1779547847000,-500.0,9.589e-05,2]
[422866317,1779547847000,-73.84200489,9.589e-05,2]
[422866315,1779547847000,-500.0,9.589e-05,2]
[422866308,1779547847000,-500.0,9.315e-05,2]
[422866306,1779547847000,-500.0,9.315e-05,2]
[422866311,1779547847000,-1120.54169928,9.535e-05,7]
[422866312,1779547847000,-919.41733549,9.535e-05,2]
[422866310,1779547847000,-229.01252371,9.412e-05,2]
[422866303,1779547847000,-500.0,9.315e-05,2]
[422866319,1779547847000,-355.64379057,9.589e-05,2]
[422866314,1779547847000,-455.4,9.589e-05,2]
[422866304,1779547847000,-864.01,9.315e-05,2]
[422866295,1779547847000,-500.0,9.315e-05,2]
[422866297,1779547847000,-500.0,9.315e-05,2]
[422866291,1779547847000,-500.0,9.315e-05,2]
[422866298,1779547847000,-4821.42,9.315e-05,2]
[422866313,1779547847000,-152.0,9.536e-05,7]
[422866302,1779547847000,-500.0,9.315e-05,2]
[422866305,1779547847000,-500.0,9.315e-05,2]
[422866309,1779547847000,-500.0,9.315e-05,2]
[422866296,1779547847000,-500.0,9.315e-05,2]
[422866307,1779547847000,-500.0,9.315e-05,2]
[422866324,1779548084000,-500.0,6.52e-05,2]
[422866325,1779548104000,-500.0,6.52e-05,2]
[422866326,1779548124000,-744.13,6.52e-05,2]
[422866327,1779548145000,-556.89,6.52e-05,2]
[422866328,1779548165000,-605.91,6.52e-05,2]
[422866329,1779548185000,-500.0,6.52e-05,2]
[422866330,1779548206000,-500.0,6.52e-05,2]
[422866331,1779548226000,-500.0,6.52e-05,2]
[422866332,1779548246000,-556.32,6.52e-05,2]
[422866333,1779548266000,-362.19382533,6.52e-05,2]
[422866338,1779548514000,-477.48414023,6.594e-05,2]
[422866340,1779548568000,-300.0,6.618e-05,2]
[422866341,1779548621000,-300.0,6.618e-05,2]
[422866342,1779548674000,-206.0,6.618e-05,2]
[422866343,1779548728000,-500.0,6.618e-05,2]
[422866344,1779548748000,-500.0,6.618e-05,2]
[422866346,1779548768000,-237.47304559,6.619e-05,2]
[422866345,1779548768000,-200.0,6.618e-05,2]
[422866347,1779548821000,-230.46141184,6.619e-05,2]
[422866348,1779548849000,-766.59133623,6.619e-05,2]
[422866349,1779548849000,-3368.71277218,6.619e-05,2]
[422866350,1779548875000,-746.45,6.619e-05,2]
[422866351,1779548895000,-500.0,6.619e-05,2]
[422866497,1779549033000,-300.0,6.751e-05,2]
[422866489,1779549033000,-5000.0,6.619e-05,2]
[422866488,1779549033000,-152.0,6.57e-05,2]
[422866491,1779549033000,-300.0,6.751e-05,2]
[422866493,1779549033000,-300.0,6.751e-05,2]
[422866490,1779549033000,-1200.0,6.75e-05,2]
[422866492,1779549033000,-300.0,6.751e-05,2]
[422866494,1779549033000,-300.0,6.751e-05,2]
[422866495,1779549033000,-300.0,6.751e-05,2]
[422866499,1779549033000,-210.67475878,6.751e-05,2]
[422866498,1779549033000,-300.0,6.751e-05,2]
[422866496,1779549033000,-300.0,6.751e-05,2]
[422866581,1779549038000,-599.87335629,8.219e-05,2]
[422866583,1779549038000,-502.36684424,8.219e-05,2]
[422866576,1779549038000,-110847.65043107,8.119e-05,2]
[422866585,1779549038000,-501.20161476,8.219e-05,2]
[422866582,1779549038000,-506.41935877,8.219e-05,2]
[422866584,1779549038000,-500.86294887,8.219e-05,2]
[422866586,1779549038000,-500.0,8.219e-05,2]
[422866570,1779549038000,-1193.0,7.425e-05,2]
[422866564,1779549038000,-300.0,6.751e-05,2]
[422866555,1779549038000,-18.58003761,6.751e-05,2]
[422866551,1779549038000,-89.32524122,6.751e-05,2]
[422866568,1779549038000,-463.693522,7.389e-05,2]
[422866553,1779549038000,-281.41996239,6.751e-05,2]
[422866566,1779549038000,-300.0,6.751e-05,2]
[422866574,1779549038000,-463.693522,8.011e-05,2]